fUSD/lending_fUSD_20240905
["ID","MTS","AMOUNT","RATE_DAILY","PERIOD"]
[337222167,1725509432700,-150.838,0.00014517,2]
[337222168,1725509432709,-2545.482,0.00014517,2]
[337222169,1725509432718,-560.915,0.00014517,2]
[337222170,1725509432727,-300.0,0.000146,5]
[337222171,1725509432736,-300.0,0.000147,5]
[337222172,1725509432746,-1000.0,0.000147,2]
[337222173,1725509432755,-150.0,0.00014726,2]
[337222174,1725509432764,-150.0,0.00014726,2]
[337222175,1725509432775,-150.0,0.00014727,2]
[337222176,1725509432785,-288.033,0.00014727,2]
[337222177,1725509432794,-150.0,0.0001473,2]
[337222178,1725509432803,-150.0,0.00014733,2]
[337222179,1725509432813,-150.0,0.00014737,2]
[337222180,1725509432822,-150.0,0.00014738,2]
[337222181,1725509432835,-150.0,0.00014742,2]
[337222182,1725509432845,-150.0,0.00014745,2]
[337222183,1725509432854,-150.0,0.00014752,2]
[337222184,1725509432863,-150.0,0.00014752,2]
[337222185,1725509432873,-150.0,0.00014755,2]
[337222186,1725509432883,-150.0,0.00014756,2]
[337222187,1725509432893,-150.0,0.00014757,2]
[337222188,1725509432902,-150.0,0.00014759,2]
[337222189,1725509432913,-150.0,0.0001476,2]
[337222190,1725509432923,-150.0,0.00014762,2]
[337222191,1725509432932,-150.0,0.00014764,2]
[337222192,1725509432941,-150.0,0.00014769,2]
[337222193,1725509432950,-150.0,0.00014769,2]
[337222194,1725509432959,-150.0,0.00014771,2]
[337222195,1725509432968,-150.0,0.00014774,2]
[337222196,1725509432977,-150.0,0.00014776,2]
[337222197,1725509432986,-150.0,0.00014778,2]
[337222198,1725509432996,-150.0,0.0001478,2]
[337222199,1725509433005,-150.0,0.00014782,2]
[337222200,1725509433014,-150.0,0.00014782,2]
[337222201,1725509433024,-260.5687,0.00014784,2]
[337222202,1725509433034,-150.0,0.00014786,2]
[337222203,1725509433043,-150.0,0.0001479,2]
[337222204,1725509433053,-150.0,0.0001479,2]
[337222205,1725509433063,-150.0,0.00014792,2]
[337222206,1725509433072,-260.406018,0.00014795,2]
[337222207,1725509433082,-1000.0,0.000148,2]
[337222208,1725509433091,-700.0,0.000148,5]
[337222209,1725509433100,-150.0,0.00014801,2]
[337222210,1725509433109,-150.0,0.00014802,2]
[337222211,1725509433119,-150.0,0.00014803,2]
[337222212,1725509433128,-150.0,0.00014808,2]
[337222213,1725509433137,-150.0,0.00014808,2]
[337222214,1725509433146,-150.0,0.00014811,2]
[337222215,1725509433156,-150.0,0.00014812,2]
[337222216,1725509433165,-150.0,0.00014812,2]
[337222217,1725509433174,-150.0,0.00014813,2]
[337222218,1725509433183,-150.0,0.00014814,2]
[337222219,1725509433193,-150.0,0.00014815,2]
[337222220,1725509433202,-150.0,0.00014818,2]
[337222221,1725509433211,-150.0,0.00014818,2]
[337222222,1725509433220,-150.0,0.00014818,2]
[337222223,1725509433229,-150.0,0.00014824,2]
[337222224,1725509433238,-150.0,0.00014833,2]
[337222225,1725509433247,-150.0,0.00014842,2]
[337222226,1725509433257,-150.0,0.00014844,2]
[337222227,1725509433266,-150.0,0.00014844,2]
[337222228,1725509433275,-150.0,0.00014844,2]
[337222229,1725509433285,-150.0,0.00014845,2]
[337222230,1725509433294,-150.0,0.00014847,2]
[337222231,1725509433303,-150.0,0.00014852,2]
[337222232,1725509433314,-150.0,0.00014857,2]
[337222233,1725509433323,-150.0,0.0001487,2]
[337222234,1725509433332,-150.0,0.0001487,2]
[337222235,1725509433341,-150.0,0.00014876,2]
[337222236,1725509433350,-150.0,0.00014876,2]
[337222237,1725509433360,-150.0,0.00014877,2]
[337222238,1725509433370,-150.0,0.00014884,2]
[337222239,1725509433379,-150.0,0.00014888,2]
[337222240,1725509433388,-2326.4415,0.0001489,2]
[337222241,1725509433398,-2556.67165774,0.00014891,2]
[337222242,1725509433407,-2556.67165772,0.00014892,2]
[337222243,1725509433416,-2556.67165772,0.00014893,2]
[337222244,1725509433425,-2556.67165772,0.00014894,2]
[337222245,1725509433434,-2556.67165772,0.00014895,2]
[337222246,1725509433443,-150.0,0.00014896,2]
[337222247,1725509433452,-2556.67165772,0.00014896,2]
[337222248,1725509433462,-2556.67165772,0.00014897,2]
[337222249,1725509433471,-2556.67165772,0.00014898,2]
[337222250,1725509433480,-2556.67165772,0.00014899,2]
[337222251,1725509433490,-1461.6585,0.000149,2]
[337222252,1725509433499,-2486.9241,0.000149,2]
[337222253,1725509433508,-1000.0,0.000149,2]
[337222254,1725509433518,-2556.67165772,0.000149,2]
[337222255,1725509433527,-334.1970712,0.000149,2]
[337222256,1725509433537,-995.2659598,0.000149,2]
[337222257,1725509433546,-488.05785104,0.000149,2]
[337222258,1725509433557,-755.90058991,0.000149,2]
[337222259,1725509433566,-685.19907169,0.000149,2]
[337222260,1725509433575,-150.0,0.00014901,2]
[337222261,1725509433584,-150.0,0.00014906,2]
[337222262,1725509433594,-150.0,0.00014907,2]
[337222263,1725509433603,-150.0,0.0001491,2]
[337222264,1725509433613,-150.0,0.00014912,2]
[337222265,1725509433622,-150.0,0.00014915,2]
[337222266,1725509433631,-150.0,0.00014916,2]
[337222267,1725509433641,-150.0,0.00014923,2]
[337222268,1725509433650,-150.0,0.00014923,2]
[337222269,1725509433659,-150.0,0.00014923,2]
[337222270,1725509433669,-150.0,0.00014923,2]
[337222271,1725509433678,-150.0,0.00014931,2]
[337222272,1725509433687,-150.0,0.00014933,2]
[337222273,1725509433696,-150.0,0.00014934,2]
[337222274,1725509433705,-150.0,0.00014937,2]
[337222275,1725509433714,-150.0,0.00014938,2]
[337222276,1725509433724,-1287.27787947,0.0001494,2]
[337222277,1725509433733,-150.0,0.00014941,2]
[337222278,1725509433743,-850.0,0.00014943,2]
[337222279,1725509433752,-150.0,0.00014943,2]
[337222280,1725509433761,-150.0,0.00014943,2]
[337222281,1725509433771,-150.0,0.00014943,2]
[337222282,1725509433782,-150.0,0.00014945,2]
[337222283,1725509433791,-150.0,0.00014945,2]
[337222284,1725509433801,-150.0,0.00014945,2]
[337222285,1725509433811,-150.0,0.00014946,2]
[337222286,1725509433820,-150.0,0.00014949,2]
[337222287,1725509433833,-150.0,0.0001495,2]
[337222288,1725509433842,-150.0,0.00014955,2]
[337222289,1725509433852,-150.0,0.00014959,2]
[337222290,1725509433862,-150.0,0.0001496,2]
[337222291,1725509433871,-150.0,0.00014964,2]
[337222292,1725509433880,-500.0,0.00014973,2]
[337222293,1725509433890,-500.0,0.00014973,2]
[337222294,1725509433899,-150.0,0.00014978,2]
[337222295,1725509433911,-150.0,0.00014978,2]
[337222296,1725509433921,-150.0,0.00014978,2]
[337222297,1725509433931,-150.0,0.0001498,2]
[337222298,1725509433941,-150.0,0.00014984,2]
[337222299,1725509433950,-542.30847228,0.00014989,2]
[337222300,1725509433959,-500.0,0.00014989,2]
[337222301,1725509433969,-525.61772091,0.00014989,2]
[337222302,1725509433978,-500.0,0.00014989,2]
[337222303,1725509433988,-500.0,0.00014989,2]
[337222304,1725509433998,-500.0,0.00014989,2]
[337222305,1725509434008,-508.05404947,0.00014989,2]
[337222306,1725509434017,-500.0,0.00014989,2]
[337222307,1725509434027,-500.0,0.00014989,2]
[337222308,1725509434037,-500.0,0.00014989,2]
[337222309,1725509434047,-500.0,0.00014989,2]
[337222310,1725509434056,-412.10971967,0.00014989,2]
[337222311,1725509434067,-760.7130221,0.0001499,2]
[337222312,1725509434076,-791.0254528,0.0001499,2]
[337222313,1725509434085,-821.3378835,0.0001499,2]
[337222314,1725509434094,-851.6503143,0.0001499,2]
[337222315,1725509434103,-881.962745,0.0001499,2]
[337222316,1725509434301,-150.0,0.00014991,2]
[337222317,1725509434338,-150.0,0.00014993,2]
[337222318,1725509434348,-150.0,0.00014994,2]
[337222319,1725509434359,-150.0,0.00014996,2]
[337222320,1725509434369,-554.22,0.00014999,2]
[337222321,1725509434379,-500.58788471,0.00014999,2]
[337222322,1725509434389,-162.15256178,0.00014999,2]
[337222323,1725509434399,-500.25675246,0.00014999,2]
[337222324,1725509434409,-501.88708976,0.00014999,2]
[337222325,1725509434418,-500.69659563,0.00014999,2]
[337222326,1725509434428,-500.0,0.00014999,2]
[337222327,1725509434437,-500.0,0.00014999,2]
[337222328,1725509434446,-395.5,0.00014999,2]
[337222329,1725509434456,-500.0,0.00014999,2]
[337222330,1725509434466,-500.0,0.00014999,2]
[337222331,1725509434475,-500.0,0.00014999,2]
[337222332,1725509434485,-500.0,0.00014999,2]
[337222333,1725509434495,-500.0,0.00014999,2]
[337222334,1725509434504,-500.0,0.00014999,2]
[337222335,1725509434513,-500.0,0.00014999,2]
[337222336,1725509434522,-500.0,0.00014999,2]
[337222337,1725509434531,-500.0,0.00014999,2]
[337222338,1725509434541,-121946.10381309,0.00015,2]
[337222339,1725509434555,-9423.99800782,0.00015,2]
[337222340,1725509434566,-517.67,0.00015,2]
[337222341,1725509434577,-3065.28778418,0.00015,2]
[337222342,1725509434589,-456.33428005,0.00015,2]
[337222343,1725509434600,-500.0,0.00015,2]
[337222344,1725509434616,-16369.32727548,0.00015,2]
[337222345,1725509434629,-1516.47244228,0.00015,2]
[337222346,1725509434640,-1472.97,0.00015,2]
[337222347,1725509434651,-2612.32441227,0.00015,2]
[337222348,1725509434667,-690.8245438,0.00015,2]
[337222350,1725509438293,-150.0,0.00014723,2]
[337222351,1725509438303,-150.0,0.00014724,2]
[337222352,1725509438313,-150.0,0.00014736,2]
[337222353,1725509438322,-150.0,0.00014748,2]
[337222354,1725509438331,-46.00504301,0.00014748,2]
[337222355,1725509438344,-103.99495699,0.00014748,2]
[337222356,1725509438353,-150.0,0.00014751,2]
[337222357,1725509438364,-150.0,0.00014752,2]
[337222358,1725509438373,-150.0,0.00014756,2]
[337222359,1725509438382,-150.0,0.00014768,2]
[337222360,1725509438391,-150.0,0.00014772,2]
[337222361,1725509438400,-150.0,0.00014772,2]
[337222362,1725509438409,-150.0,0.00014774,2]
[337222363,1725509438419,-150.0,0.00014787,2]
[337222364,1725509438429,-150.0,0.00014791,2]
[337222365,1725509438438,-150.0,0.00014816,2]
[337222366,1725509438447,-150.0,0.00014827,2]
[337222367,1725509438457,-150.0,0.00014829,2]
[337222368,1725509438467,-150.0,0.00014835,2]
[337222369,1725509438477,-150.0,0.00014837,2]
[337222370,1725509438486,-101.84760228,0.00014854,2]
[337222371,1725509438521,-48.15239772,0.00014854,2]
[337222372,1725509438530,-150.0,0.00014856,2]
[337222373,1725509438540,-150.0,0.00014864,2]
[337222374,1725509438549,-150.0,0.00014867,2]
[337222375,1725509438559,-150.0,0.00014889,2]
[337222376,1725509438569,-150.0,0.00014893,2]
[337222377,1725509438578,-150.0,0.00014914,2]
[337222378,1725509438587,-150.0,0.00014921,2]
[337222379,1725509438595,-150.0,0.00014922,2]
[337222380,1725509438604,-150.0,0.00014926,2]
[337222381,1725509438614,-150.0,0.00014929,2]
[337222382,1725509438623,-150.0,0.00014939,2]
[337222383,1725509438632,-150.0,0.00014942,2]
[337222384,1725509438642,-150.0,0.00014943,2]
[337222385,1725509438651,-150.0,0.00014952,2]
[337222386,1725509438660,-150.0,0.00014956,2]
[337222387,1725509438669,-150.0,0.0001496,2]
[337222388,1725509438679,-150.0,0.00014978,2]
[337222389,1725509438688,-300.0,0.00014982,2]
[337222390,1725509438698,-150.0,0.00014988,2]
[337222391,1725509438707,-150.0,0.00014993,2]
[337222392,1725509438717,-150.0,0.00014996,2]
[337222394,1725509438726,-24080.49885052,0.00015,2]
[337222395,1725509438738,-287.34726879,0.00015,2]
[337222396,1725509438749,-63650.15497159,0.00015,2]
[337222397,1725509438761,-1109.20886868,0.00015,2]
[337222398,1725509438776,-471.26757877,0.00015,2]
[337222399,1725509438787,-897.58477711,0.00015,2]
[337222440,1725509440303,-311.142,0.0001499,2]
[337222441,1725509440316,-13.6953323,0.0001499,2]
[337222442,1725509440326,-350.6986486,0.0001499,2]
[337222443,1725509440335,-298.976016,0.00014993,2]
[337222444,1725509440344,-442215.61860531,0.00015,2]
[337222445,1725509440353,-765.0,0.00015,2]
[337222446,1725509440362,-4806369.81666318,0.00015,2]
[337222447,1725509440372,-497.0,0.00015,2]
[337222448,1725509440381,-536252.32387585,0.00015,2]
[337222449,1725509440391,-2215.98433792,0.00015,2]
[337222450,1725509440409,-362.572002,0.00015,2]
[337222451,1725509440464,-376.5599649,0.0001499,2]
[337222452,1725509440473,-546.52447338,0.00015,2]
[337222453,1725509440484,-1103.41846136,0.00015,2]
[337222454,1725509440570,-37533.08178596,0.00015,2]
[337222455,1725509440626,-402.4212812,0.0001499,2]
[337222456,1725509440636,-1238.8812388,0.00015,2]
[337222457,1725509440651,-1102503.57993534,0.00015,2]
[337222458,1725509440663,-45129.82602882,0.00015,2]
[337222459,1725509440675,-424017.24501531,0.00015,2]
[337222460,1725509440684,-95418.35398466,0.00015,2]
[337222461,1725509440695,-1023.25,0.00015,2]
[337222462,1725509440707,-29574.57782437,0.00015,2]
[337222463,1725509440718,-3017.256,0.00015,2]
[337222464,1725509440729,-3380.424834,0.00015,2]
[337222466,1725509440740,-402.85997472,0.00015,2]
[337222468,1725509440751,-432.69078693,0.00015,2]
[337222469,1725509440762,-285.969,0.00015,2]
[337222470,1725509440773,-330.44,0.00015,2]
[337222483,1725509443315,-340.68338463,0.0001499,2]
[337222485,1725509443628,-87.59921287,0.0001499,2]
[337222486,1725509443637,-150.76,0.0001499,2]
[337222487,1725509443646,-126.35139645,0.00015,2]
[337222488,1725509443658,-947.40643778,0.00015,2]
[337222489,1725509443668,-4149.00698587,0.00015,2]
[337222682,1725509446272,-150.0,0.00014192,2]
[337222684,1725509446282,-171.02536145,0.000149,2]
[337222686,1725509446293,-575.15943175,0.00014915,2]
[337222695,1725509446379,-533.14236725,0.00014915,2]
[337222697,1725509446389,-768.19526356,0.00015,2]
[337222700,1725509446400,-1794.36314389,0.00015,2]
[337222704,1725509446434,-5114.97780404,0.00015,2]
[337222706,1725509446445,-9309.10477623,0.00015,2]
[337222709,1725509446458,-302.0,0.00015,2]
[337222711,1725509446468,-8079.87362539,0.00015,2]
[337222714,1725509446489,-38342.993469,0.00015,2]
[337222721,1725509446550,-273.5,0.00015,2]
[337222723,1725509446563,-17217.40909647,0.00015,2]
[337222728,1725509446598,-1668.32821834,0.00015,2]
[337223480,1725509729040,206.88,0.00010959,2]
[337223481,1725509788755,560.00903883,0.00027,120]
[337223482,1725509895324,5039.0,0.00027,120]
[337223483,1725509981688,150.0,0.00012002,2]
[337223485,1725510082473,614.11,0.00011852,2]
[337223486,1725510232232,283.93,0.00010959,2]
[337223487,1725510319811,2378.88863792,9e-05,2]
[337223488,1725510354652,4503.52352178,6.94e-05,2]
[337223489,1725510478278,4788.75848771,0.0001,2]
[337223490,1725510488125,2600.0,0.00025,60]
[337223496,1725510517309,3897.12119164,0.00025,60]
[337223498,1725510570729,1000.0,0.00025,60]
[337223506,1725510631430,-150.0,0.00013488,2]
[337223507,1725510631439,-150.0,0.00013488,2]
[337223508,1725510631448,-150.0,0.00013488,2]
[337223509,1725510631457,-150.21657703,0.00013488,2]
[337223510,1725510631466,-15.55394297,0.00013488,2]
[337223511,1725510631480,-135.68887686,0.00013488,2]
[337223512,1725510631490,-150.34654354,0.00013488,2]
[337223513,1725510631500,-210.7345796,0.00013622,2]
[337223514,1725510631511,-300.0,0.00013622,2]
[337223515,1725510631524,-489.2654204,0.00013622,2]
[337223516,1725510631532,-4.08385503,0.00013623,2]
[337223517,1725510631547,-179.55614497,0.00013623,2]
[337223518,1725510631556,-250.0,0.00013633,2]
[337223519,1725510631565,-2089.5526508,0.00013645,2]
[337223520,1725510631577,-10040.96790641,0.00013645,2]
[337223521,1725510631589,-2470.24297497,0.00013645,2]
[337223522,1725510631600,-4087.53372105,0.00013645,2]
[337223523,1725510631612,-287.37338502,0.00013645,2]
[337223524,1725510631625,-2836.32857699,0.00013645,2]
[337223525,1725510631638,-494.30457472,0.00013645,2]
[337223526,1725510631651,-1573.69621004,0.00013645,2]
[337223527,1725510631660,-250.0,0.00013708,2]
[337223528,1725510631670,-250.0,0.00013712,2]
[337223529,1725510631681,-1500.0,0.00013718,2]
[337223530,1725510631690,-723.1,0.0001372,2]
[337223531,1725510631698,-115.12627117,0.00013725,2]
[337223532,1725510631708,-64.65372883,0.00013725,2]
[337223533,1725510631717,-168.69,0.00013728,2]
[337223534,1725510631727,-180.12950025,0.0001373,2]
[337223535,1725510631738,-282.80049975,0.0001373,2]
[337223536,1725510631746,-150.0,0.00013737,2]
[337223537,1725510631757,-150.0,0.00013749,2]
[337223538,1725510631768,-163.31,0.00013783,2]
[337223539,1725510631779,-300.0,0.00013791,2]
[337223540,1725510631789,-499.99,0.00013795,2]
[337223541,1725510631799,-171.55,0.00013818,2]
[337223542,1725510631808,-152.86,0.00013822,2]
[337223543,1725510631818,-330.61,0.00013884,2]
[337223544,1725510631829,-500.0,0.000139,2]
[337223545,1725510631839,-150.0,0.00013987,2]
[337223546,1725510631850,-505.80481578,0.0001405,2]
[337223547,1725510631860,-500.0,0.0001405,2]
[337223548,1725510631869,-614.11,0.00014116,2]
[337223549,1725510631878,-150.0,0.00014178,2]
[337223550,1725510631887,-150.0,0.000142,2]
[337223551,1725510631896,-150.0,0.000142,2]
[337223552,1725510631905,-150.0,0.00014237,2]
[337223553,1725510631914,-150.0,0.00014237,2]
[337223554,1725510631923,-150.0,0.00014237,2]
[337223555,1725510631932,-150.0,0.00014267,2]
[337223556,1725510631941,-179.12,0.00014267,2]
[337223557,1725510631950,-150.0,0.000143,2]
[337223558,1725510631959,-298.9202677,0.000143,2]
[337223559,1725510631978,-74.9797323,0.000143,2]
[337223560,1725510631987,-150.0,0.000143,2]
[337223561,1725510631996,-150.0,0.000143,2]
[337223562,1725510632006,-150.0,0.000143,2]
[337223563,1725510632015,-252.5162637,0.000143,2]
[337223564,1725510632026,-47.4837363,0.000143,2]
[337223565,1725510632035,-150.0,0.000143,2]
[337223566,1725510632044,-205.92,0.00014328,2]
[337223567,1725510632053,-118.03957588,0.00014487,2]
[337223568,1725510632064,-31.96042412,0.00014487,2]
[337223569,1725510632073,-418.83422919,0.00014598,2]
[337223570,1725510632082,-1000.0,0.000146,2]
[337223571,1725510632091,-150.0,0.000147,2]
[337223572,1725510632100,-102.81637914,0.000147,2]
[337223575,1725510637428,-47.18362086,0.000147,2]
[337223576,1725510637439,-996.4610791,0.000147,2]
[337223577,1725510637452,-3.5389209,0.000147,2]
[337223578,1725510637463,-150.0,0.00014727,2]
[337223579,1725510637474,-150.0,0.00014728,2]
[337223580,1725510637486,-150.0,0.00014728,2]
[337223581,1725510637495,-150.0,0.00014729,2]
[337223582,1725510637505,-150.0,0.00014729,2]
[337223583,1725510637515,-150.0,0.00014735,2]
[337223584,1725510637524,-150.0,0.00014737,2]
[337223585,1725510637534,-150.0,0.00014737,2]
[337223586,1725510637545,-150.0,0.0001474,2]
[337223587,1725510637555,-150.0,0.00014742,2]
[337223588,1725510637565,-2451.47750199,0.00014742,2]
[337223589,1725510637578,-765.98151754,0.00014742,2]
[337223590,1725510637590,-6453.16753518,0.00014742,2]
[337223591,1725510637603,-21451.22044529,0.00014742,2]
[337223592,1725510637614,-150.0,0.00014747,2]
[337223593,1725510637625,-150.0,0.00014749,2]
[337223594,1725510637636,-150.0,0.00014753,2]
[337223595,1725510637647,-150.0,0.00014753,2]
[337223596,1725510637658,-150.0,0.00014755,2]
[337223597,1725510637669,-150.0,0.00014757,2]
[337223598,1725510637679,-150.0,0.00014757,2]
[337223599,1725510637690,-150.0,0.0001476,2]
[337223600,1725510637700,-150.0,0.00014763,2]
[337223601,1725510637711,-150.0,0.00014764,2]
[337223602,1725510637722,-150.0,0.00014764,2]
[337223603,1725510637734,-150.0,0.00014766,2]
[337223604,1725510637744,-19.97359386,0.00014767,2]
[337223605,1725510637759,-130.02640614,0.00014767,2]
[337223606,1725510637770,-150.0,0.00014774,2]
[337223607,1725510637781,-150.0,0.00014774,2]
[337223608,1725510637792,-150.0,0.00014776,2]
[337223609,1725510637802,-150.0,0.00014776,2]
[337223610,1725510637813,-150.0,0.00014779,2]
[337223611,1725510637823,-150.0,0.00014779,2]
[337223613,1725510637835,-150.0,0.0001479,2]
[337223615,1725510637845,-150.0,0.00014791,2]
[337223616,1725510637855,-150.0,0.00014793,2]
[337223617,1725510637865,-150.0,0.00014793,2]
[337223618,1725510637875,-1520.6081822,0.000148,2]
[337223619,1725510637885,-583.34,0.000148,2]
[337223620,1725510637896,-150.0,0.000148,2]
[337223621,1725510637908,-150.0,0.000148,2]
[337223622,1725510637918,-150.0,0.000148,2]
[337223623,1725510637930,-646.08003166,0.000148,5]
[337223624,1725510637944,-353.91996834,0.000148,5]
[337223625,1725510637955,-1000.0,0.000148,2]
[337223626,1725510637965,-489.57862817,0.000148,2]
[337223627,1725510637976,-1000.0,0.000148,2]
[337223628,1725510637988,-153.20140349,0.000148,3]
[337223629,1725510638004,-307.07755376,0.000148,3]
[337223630,1725510638016,-539.72104275,0.000148,3]
[337223631,1725510638026,-242.45589197,0.000148,4]
[337223632,1725510638039,-442.25,0.000148,4]
[337223633,1725510638052,-315.29410803,0.000148,4]
[337223634,1725510638063,-2500.0,0.000148,2]
[337223635,1725510638074,-150.0,0.00014803,2]
[337223636,1725510638083,-150.0,0.00014803,2]
[337223637,1725510638094,-150.0,0.00014803,2]
[337223638,1725510638104,-150.0,0.00014804,2]
[337223639,1725510638115,-150.0,0.00014805,2]
[337223640,1725510638126,-150.0,0.00014809,2]
[337223641,1725510638136,-489.57862812,0.00014811,2]
[337223642,1725510638147,-150.0,0.00014821,2]
[337223643,1725510638158,-489.57862812,0.00014822,2]
[337223644,1725510638168,-152.0,0.00014824,3]
[337223645,1725510638179,-150.0,0.00014827,2]
[337223646,1725510638189,-66.79028013,0.00014828,2]
[337223647,1725510638201,-83.20971987,0.00014828,2]
[337223648,1725510638212,-150.0,0.00014829,2]
[337223649,1725510638223,-150.0,0.00014833,2]
[337223650,1725510638235,-489.57862812,0.00014833,2]
[337223651,1725510638246,-150.0,0.00014837,2]
[337223652,1725510638257,-150.0,0.00014839,2]
[337223653,1725510638268,-150.0,0.0001484,2]
[337223654,1725510638279,-150.0,0.00014842,2]
[337223655,1725510638294,-489.57862812,0.00014844,2]
[337223656,1725510638304,-150.0,0.00014846,2]
[337223657,1725510638316,-150.0,0.0001485,2]
[337223658,1725510638327,-150.0,0.0001485,2]
[337223659,1725510638337,-321.83267328,0.0001485,2]
[337223660,1725510638346,-489.57862812,0.00014856,2]
[337223661,1725510638357,-150.0,0.00014857,2]
[337223662,1725510638367,-1890.9274,0.0001486,2]
[337223663,1725510638378,-150.0,0.00014861,2]
[337223664,1725510638387,-150.0,0.00014861,2]
[337223665,1725510638398,-489.57862812,0.00014867,2]
[337223666,1725510638407,-150.0,0.00014868,2]
[337223667,1725510638417,-150.0,0.00014869,2]
[337223668,1725510638426,-150.0,0.00014877,2]
[337223669,1725510638437,-489.57862812,0.00014878,2]
[337223670,1725510638447,-150.0,0.00014879,2]
[337223671,1725510638457,-2913.71706625,0.0001488,2]
[337223672,1725510638472,-2904.36568528,0.0001488,2]
[337223673,1725510638482,-150.0,0.00014881,2]
[337223674,1725510638491,-150.0,0.00014883,2]
[337223675,1725510638502,-150.0,0.00014883,2]
[337223676,1725510638513,-150.0,0.00014883,2]
[337223677,1725510638522,-237.03711621,0.00014887,2]
[337223678,1725510638531,-489.57862812,0.00014889,2]
[337223679,1725510638541,-150.0,0.00014889,2]
[337223680,1725510638551,-150.0,0.0001489,2]
[337223681,1725510638562,-150.0,0.0001489,2]
[337223682,1725510638573,-26102.4048802,0.0001489,3]
[337223683,1725510638582,-936.2736,0.0001489,2]
[337223684,1725510638592,-4973.8876,0.0001489,2]
[337223685,1725510638603,-7523.4755,0.0001489,2]
[337223686,1725510638614,-1394.7005,0.0001489,2]
[337223687,1725510638624,-181.77573316,0.00014891,2]
[337223688,1725510638635,-150.0,0.00014894,2]
[337223689,1725510638650,-150.0,0.00014897,2]
[337223690,1725510638661,-150.0,0.00014899,2]
[337223691,1725510638672,-500.0,0.00014899,2]
[337223692,1725510638684,-500.0,0.000149,2]
[337223693,1725510638695,-1000.0,0.000149,2]
[337223694,1725510638704,-10749.65274103,0.000149,2]
[337223695,1725510638716,-3861.57904239,0.000149,2]
[337223696,1725510638729,-1167.56978197,0.000149,2]
[337223697,1725510638741,-1248.82727493,0.000149,2]
[337223698,1725510638753,-709.08266212,0.000149,2]
[337223699,1725510638766,-19137.89899619,0.000149,2]
[337223700,1725510638781,-6330.25291214,0.000149,2]
[337223701,1725510638795,-2234.28306925,0.000149,2]
[337223702,1725510638808,-515.28705452,0.000149,2]
[337223703,1725510638819,-1134.70787623,0.000149,2]
[337223704,1725510638831,-7516.56391197,0.000149,2]
[337223706,1725510639412,-2295.28,0.000149,2]
[337223707,1725510639424,-503.4787228,0.000149,2]
[337223708,1725510639527,-1079.800005,0.000149,2]
[337223709,1725510639540,-307.46014093,0.000149,2]
[337223710,1725510639551,-6174.05112222,0.000149,2]
[337223711,1725510639563,-5520.4318433,0.000149,2]
[337223712,1725510639575,-3593.08737091,0.000149,2]
[337223713,1725510639590,-12396.67566081,0.000149,2]
[337223714,1725510639602,-17049.04648691,0.000149,2]
[337223715,1725510639614,-540.18000005,0.000149,2]
[337223716,1725510639644,-707.29759084,0.000149,2]
[337223717,1725510639702,-286.955,0.000149,2]
[337223718,1725510639714,-264.88636542,0.000149,2]